Workbook

Sheet Pages 228-232
A1: CALCULATING THE FRONTIER
A2: Variance-covariance, S | F2: Mean returns E(r) | G2: E(r) minus constant
A3: 0.1 | B3: 0.01 | C3: 0.03 | D3: 0.05 | F3: 0.06 | G3: =F3-$B$8 -> 0.02 | H3: =getformula(G3) -> <-- =F3-$B$8
A4: =B3 -> 0.01 | B4: 0.3 | C4: 0.06 | D4: -0.04 | F4: 0.08 | G4: =F4-$B$8 -> 0.04
A5: =C3 -> 0.03 | B5: =C4 -> 0.06 | C5: 0.4 | D5: 0.02 | F5: 0.1 | G5: 0.06
A6: =D3 -> 0.05 | B6: =D4 -> -0.04 | C6: =D5 -> 0.02 | D6: 0.5 | F6: 0.15 | G6: 0.11
A8: Constant, c | B8: 0.04
A10: Computing an envelope portfolio with constant = 0
A11: z | F11: Envelope portfolio x
A12: =MMULT(MINVERSE(A3:D6),F3:F6) -> 0.3861062832 | B12: =getformula(A12) -> <-- {=MMULT(MINVERSE(A3:D6),F3:F6)} | F12: =A12/SUM($A$12:$A$15) -> 0.3552726316 | G12: =getformula(F12) -> <-- =A12/SUM($A$12:$A$15)
A13: 0.2567320497 | F13: =A13/SUM($A$12:$A$15) -> 0.2362299576
A14: 0.1687733713 | F14: 0.1552954778
A15: 0.2751770008 | F15: 0.2532019329
E16: Sum | F16: =SUM(F12:F15) -> 1 | G16: =getformula(F16) -> <-- =SUM(F12:F15)
A18: ="Computing an envelope portfolio with constant = "&TEXT(B8,"0.00%") -> Computing an envelope portfolio with constant = 4.00%
A19: z | F19: Envelope portfolio y
A20: =MMULT(MINVERSE(A3:D6),G3:G6) -> 0.04039606046 | B20: =getformula(A20) -> <-- {=MMULT(MINVERSE(A3:D6),G3:G6)} | F20: =A20/SUM($A$20:$A$23) -> 0.07820602459 | G20: =getformula(F20) -> <-- =A20/SUM($A$20:$A$23)
A21: 0.1386362097 | F21: =A21/SUM($A$20:$A$23) -> 0.2683971334
A22: 0.1150524043 | F22: 0.222739323
A23: 0.2224491946 | F23: 0.4306575191
E24: Sum | F24: =SUM(F20:F23) -> 1 | G24: =getformula(F24) -> <-- =SUM(F20:F23)
A26: E(x) | B26: =MMULT(TRANSPOSE(F12:F15),F3:F6) -> 0.09372459223 | E26: E(y) | F26: =MMULT(TRANSPOSE(F20:F23),F3:F6) -> 0.1130366923 | G26: =getformula(F26) -> <-- {=MMULT(TRANSPOSE(F20:F23),F3:F6)}
A27: Var(x) | B27: =MMULT(MMULT(TRANSPOSE(F12:F15),A3:D6),F12:F15) -> 0.08623993955 | E27: Var(y) | F27: =MMULT(MMULT(TRANSPOSE(F20:F23),A3:D6),F20:F23) -> 0.1413976831 | G27: =getformula(F27) -> <-- {=MMULT(MMULT(TRANSPOSE(F20:F23),A3:D6),F20:F23)}
A28: Sigma(x) | B28: =SQRT(B27) -> 0.2936663746 | E28: Sigma(y) | F28: =SQRT(F27) -> 0.3760288327 | G28: =getformula(F28) -> <-- =SQRT(F27)
A30: Cov(x,y) | B30: =MMULT(MMULT(TRANSPOSE(F12:F15),A3:D6),F20:F23) -> 0.1040098151 | C30: =getformula(B30) -> <-- {=MMULT(MMULT(TRANSPOSE(F12:F15),A3:D6),F20:F23)}
A31: Corr(x,y) | B31: =B30/(B28*F28) -> 0.9418873327 | C31: =getformula(B31) -> <-- =B30/(B28*F28)
A34: A single portfolio calculation
A35: Proportion of x | B35: 0.3
A36: E(rp) | B36: =B35*B26+(1-B35)*F26 -> 0.1072430623 | C36: =getformula(B36) -> <-- =B35*B26+(1-B35)*F26
A37: sp2 | B37: =B35^2*B27+(1-B35)^2*F27+2*B35*(1-B35)*B30 -> 0.1207305816 | C37: =getformula(B37) -> <-- =B35^2*B27+(1-B35)^2*F27+2*B35*(1-B35)*B30
A38: sp | B38: =SQRT(B37) -> 0.3474630651 | C38: =getformula(B38) -> <-- =SQRT(B37)
A40: Data table: We vary the proportion of x to produce a graph of the frontier
A41: Proportion of x | B41: Sigma | C41: Return
B42: =B38 -> 0.3474630651 | C42: =B36 -> 0.1072430623 | D42: =getformula(C42)&", data table header" -> <-- =B36, data table header
A43: -1.5 | B43: 0.5456205363 | C43: 0.1420048424
A44: -1.2 | B44: 0.5092921313 | C44: 0.1362112124
A45: -1 | B45: 0.485583578 | C45: 0.1323487924
A46: -0.8 | B46: 0.4623567744 | C46: 0.1284863724
A47: -0.6 | B47: 0.4396880733 | C47: 0.1246239523
A48: -0.4 | B48: 0.4176683567 | C48: 0.1207615323
A49: -0.2 | B49: 0.3964057895 | C49: 0.1168991123
A50: 0 | B50: 0.3760288327 | C50: 0.1130366923
A51: 0.25 | B51: 0.3520367504 | C51: 0.1082086673
A52: 0.5 | B52: 0.330021686 | C52: 0.1033806423
A53: 0.75 | B53: 0.3104045777 | C53: 0.09855261725
A54: 0.8 | B54: 0.3068103803 | C54: 0.09758701224
A55: 1 | B55: 0.2936663746 | C55: 0.09372459223
A56: 1.2 | B56: 0.2826954351 | C56: 0.08986217221
A57: 1.4 | B57: 0.2741585634 | C57: 0.0859997522
A58: 1.6 | B58: 0.2682882146 | C58: 0.08213733219
A59: 1.8 | B59: 0.2652614818 | C59: 0.07827491217
A60: 2 | B60: 0.2651757544 | C60: 0.07441249216
A61: 2.2 | B61: 0.2680338544 | C61: 0.07055007214
A62: 2.4 | B62: 0.2737435897 | C62: 0.06668765213
A63: 2.6 | B63: 0.2821318806 | C63: 0.06282523211
A64: 2.8 | B64: 0.29296874 | C64: 0.0589628121
A65: 3 | B65: 0.3059941283 | C65: 0.05510039208

Sheet Page 233
A1: FINDING ENVELOPE PORTFOLIOS IN ONE STEP
A2: Variance-covariance, S | F2: Mean returns E(r)
A3: 0.1 | B3: 0.01 | C3: 0.03 | D3: 0.05 | F3: 0.06
A4: =B3 -> 0.01 | B4: 0.3 | C4: 0.06 | D4: -0.04 | F4: 0.08
A5: =C3 -> 0.03 | B5: =C4 -> 0.06 | C5: 0.4 | D5: 0.02 | F5: 0.1
A6: =D3 -> 0.05 | B6: =D4 -> -0.04 | C6: =D5 -> 0.02 | D6: 0.5 | F6: 0.15
A8: Constant | B8: 0.04
A10: Envelope portfolio
A11: =MMULT(MINVERSE(A3:D6),F3:F6-B8)/SUM(MMULT(MINVERSE(A3:D6),F3:F6-B8)) -> 0.07820602459 | B11: =getformula(A11) -> <-- {=MMULT(MINVERSE(A3:D6),F3:F6-B8)/SUM(MMULT(MINVERSE(A3:D6),F3:F6-B8))}
A12: 0.2683971334
A13: 0.222739323
A14: 0.4306575191
A16: Portfolio mean | B16: =SUMPRODUCT(A11:A14,F3:F6) -> 0.1130366923 | C16: =getformula(B16) -> <-- =SUMPRODUCT(A11:A14,F3:F6)
A17: Portfolio sigma | B17: =SQRT(MMULT(MMULT(TRANSPOSE(A11:A14),A3:D6),A11:A14)) -> 0.3760288327 | C17: =getformula(B17) -> <-- {=SQRT(MMULT(MMULT(TRANSPOSE(A11:A14),A3:D6),A11:A14))}

Sheet Page 235
A1: FINDING ENVELOPE PORTFOLIOS IN ONE STEP
A2: Variance-covariance, S | F2: Mean returns E(r)
A3: 0.1 | B3: 0.01 | C3: 0.03 | D3: 0.05 | F3: 0.06
A4: =B3 -> 0.01 | B4: 0.3 | C4: 0.06 | D4: -0.04 | F4: 0.08
A5: =C3 -> 0.03 | B5: =C4 -> 0.06 | C5: 0.4 | D5: 0.02 | F5: 0.1
A6: =D3 -> 0.05 | B6: =D4 -> -0.04 | C6: =D5 -> 0.02 | D6: 0.5 | F6: 0.15
A8: Constant | B8: 0.04
A10: Envelope portfolio
A11: =MMULT(MINVERSE(varcov),means-B8)/SUM(MMULT(MINVERSE(varcov),means-B8)) -> 0.07820602459 | B11: =getformula(A11) -> <-- {=MMULT(MINVERSE(varcov),means-B8)/SUM(MMULT(MINVERSE(varcov),means-B8))}
A12: 0.2683971334
A13: 0.222739323
A14: 0.4306575191
A16: Portfolio mean | B16: =SUMPRODUCT(portx,means) -> 0.1130366923 | C16: =getformula(B16) -> <-- =SUMPRODUCT(portx,means)
A17: Portfolio sigma | B17: =SQRT(MMULT(MMULT(TRANSPOSE(portx),varcov),portx)) -> 0.3760288327 | C17: =getformula(B17) -> <-- {=SQRT(MMULT(MMULT(TRANSPOSE(portx),varcov),portx))}

Sheet Page 236
A1: CALCULATING THE ENVELOPE All constants c lead to the same envelope
A2: Variance-covariance, S | F2: Mean returns E(r)
A3: 0.1 | B3: 0.01 | C3: 0.03 | D3: 0.05 | F3: 0.06
A4: =B3 -> 0.01 | B4: 0.3 | C4: 0.06 | D4: -0.04 | F4: 0.08
A5: =C3 -> 0.03 | B5: =C4 -> 0.06 | C5: 0.4 | D5: 0.02 | F5: 0.1
A6: =D3 -> 0.05 | B6: =D4 -> -0.04 | C6: =D5 -> 0.02 | D6: 0.5 | F6: 0.15
A8: Constant | B8: 0 | C8: 0.04 | D8: 0.06
B10: Portfolio x | C10: Portfolio y | D10: Portfolio z
B11: =MMULT(MINVERSE(varcov),means-B8)/SUM(MMULT(MINVERSE(varcov),means-B8)) -> 0.3552726316 | C11: =MMULT(MINVERSE(varcov),means-C8)/SUM(MMULT(MINVERSE(varcov),means-C8)) -> 0.07820602459 | D11: =MMULT(MINVERSE(varcov),means-D8)/SUM(MMULT(MINVERSE(varcov),means-D8)) -> -0.5724086357 | E11: =getformula(D11) -> <-- {=MMULT(MINVERSE(varcov),means-D8)/SUM(MMULT(MINVERSE(varcov),means-D8))}
B12: 0.2362299576 | C12: 0.2683971334 | D12: 0.3439328911
B13: 0.1552954778 | C13: 0.222739323 | D13: 0.3811126284
B14: 0.2532019329 | C14: 0.4306575191 | D14: 0.8473631161
A16: Portfolio mean | B16: =SUMPRODUCT(portfoliox,means) -> 0.09372459223 | C16: =SUMPRODUCT(portfolioy,means) -> 0.1130366923 | D16: =SUMPRODUCT(portfolioz,means) -> 0.1583858434 | E16: =getformula(D16) -> <-- =SUMPRODUCT(portfolioz,means)
A17: Portfolio sigma | B17: =SQRT(MMULT(MMULT(TRANSPOSE(portfoliox),varcov),portfoliox)) -> 0.2936663746 | C17: =SQRT(MMULT(MMULT(TRANSPOSE(portfolioy),varcov),portfolioy)) -> 0.3760288327 | D17: =SQRT(MMULT(MMULT(TRANSPOSE(portfolioz),varcov),portfolioz)) -> 0.6520465112 | E17: =getformula(D17) -> <-- {=SQRT(MMULT(MMULT(TRANSPOSE(portfolioz),varcov),portfolioz))}
A20: Show: portfolio z is a linear proportion of portfolio x and portfolio y
A21: Proportion | B21: =(D11-C11)/(B11-C11) -> -2.348224737 | C21: =getformula(B21) -> <-- =(D11-C11)/(B11-C11)
A22: Check
A23: z1 | B23: =$B$21*B11+(1-$B$21)*C11 -> -0.5724086357 | C23: =getformula(B23) -> <-- =$B$21*B11+(1-$B$21)*C11
A24: z2 | B24: =$B$21*B12+(1-$B$21)*C12 -> 0.3439328911 | C24: =getformula(B24) -> <-- =$B$21*B12+(1-$B$21)*C12
A25: z3 | B25: 0.3811126284 | C25: =getformula(B25) -> <-- =$B$21*B13+(1-$B$21)*C13
A26: z4 | B26: 0.8473631161 | C26: =getformula(B26) -> <-- =$B$21*B14+(1-$B$21)*C14

Sheet Page 237
A1: SOME c's CAN LEAD TO INEFFICIENT PORTFOLIOS
A2: Variance-covariance, S | F2: Mean returns E(r)
A3: 0.1 | B3: 0.01 | C3: 0.03 | D3: 0.05 | F3: 0.06
A4: =B3 -> 0.01 | B4: 0.3 | C4: 0.06 | D4: -0.04 | F4: 0.08
A5: =C3 -> 0.03 | B5: =C4 -> 0.06 | C5: 0.4 | D5: 0.02 | F5: 0.1
A6: =D3 -> 0.05 | B6: =D4 -> -0.04 | C6: =D5 -> 0.02 | D6: 0.5 | F6: 0.15
A8: Constant | B8: 0.11 | C8: 0.04
B10: Portfolio x | C10: Portfolio y
B11: =MMULT(MINVERSE(varcov),means-B8)/SUM(MMULT(MINVERSE(varcov),means-B8)) -> 1.172793198 | C11: =MMULT(MINVERSE(varcov),means-C8)/SUM(MMULT(MINVERSE(varcov),means-C8)) -> 0.07820602459
B12: 0.1413165791 | C12: 0.2683971334
B13: -0.04370623906 | C13: 0.222739323
B14: -0.2704035384 | C14: 0.4306575191
A16: Portfolio mean | B16: =SUMPRODUCT(portfoliox,means) -> 0.03674176357 | C16: =SUMPRODUCT(portfolioy,means) -> 0.1130366923
A17: Portfolio sigma | B17: =SQRT(MMULT(MMULT(TRANSPOSE(portfoliox),varcov),portfoliox)) -> 0.3900944141 | C17: =SQRT(MMULT(MMULT(TRANSPOSE(portfolioy),varcov),portfolioy)) -> 0.3760288327
A18: Cov(x,y) | B18: =MMULT(MMULT(TRANSPOSE(portfoliox),varcov),portfolioy) -> -0.006307885367
A20: Single portfolio calculation
A21: Proportion of x | B21: 0.6
A22: Mean | B22: =B21*B16+(1-B21)*C16 -> 0.06725973506 | C22: =getformula(B22) -> <-- =B21*B16+(1-B21)*C16
A23: Sigma | B23: =SQRT(B21^2*B17^2+(1-B21)^2*C17^2+2*B21*(1-B21)*B18) -> 0.2727239612 | C23: =getformula(B23) -> <-- =SQRT(B21^2*B17^2+(1-B21)^2*C17^2+2*B21*(1-B21)*B18)
A26: Data table to determine the frontier
A27: Proportion of x | B27: Sigma | C27: Mean
B28: =B23 -> 0.2727239612 | C28: =B22 -> 0.06725973506
A29: -1 | B29: 0.8619721142 | C29: 0.189331621
A30: -0.8 | B30: 0.7574208475 | C30: 0.1740726353
A31: -0.6 | B31: 0.6548829844 | C31: 0.1588136495
A32: -0.4 | B32: 0.5554746391 | C32: 0.1435546638
A33: -0.2 | B33: 0.4612238011 | C33: 0.1282956781
A34: 0 | B34: 0.3760288327 | C34: 0.1130366923
A35: 0.2 | B35: 0.3075108777 | C35: 0.09777770656
A36: 0.4 | B36: 0.2687436794 | C36: 0.08251872081
A37: 0.6 | B37: 0.2727239612 | C37: 0.06725973506
A38: 0.8 | B38: 0.3178498407 | C38: 0.05200074931
A39: 1 | B39: 0.3900944141 | C39: 0.03674176357
A40: 1.2 | B40: 0.4772983879 | C40: 0.02148277782
A41: 1.4 | B41: 0.5726681576 | C41: 0.006223792071
A42: 1.6 | B42: 0.6727398121 | C42: -0.009035193676
A43: 1.8 | B43: 0.775695726 | C43: -0.02429417942
A44: 2 | B44: 0.8805247483 | C44: -0.03955316517

Sheet Page 241
A1: IF c = rf AND THE OPTIMIZING PORTFOLIO IS EFFICIENT, THEN THE ENVELOPE PORTFOLIO IS OPTIMAL The portfolio x determined by the constant c = 4% is optimal
A2: Variance-covariance matrix | F2: Expected returns
A3: 0.4 | B3: 0.03 | C3: 0.02 | D3: 0 | F3: 0.06
A4: =B3 -> 0.03 | B4: 0.2 | C4: 0.001 | D4: -0.06 | F4: 0.05
A5: =C3 -> 0.02 | B5: =C4 -> 0.001 | C5: 0.3 | D5: 0.03 | F5: 0.07
A6: =D3 -> 0 | B6: =D4 -> -0.06 | C6: =D5 -> 0.03 | D6: 0.1 | F6: 0.08
A8: Constant | B8: 0.04
A10: ="Computing an envelope portfolio with constant = "&TEXT(B8,"0.00") -> Computing an envelope portfolio with constant = 0.04
A11: z | F11: Envelope portfolio x
A12: =MMULT(MINVERSE(A3:D6),F3:F6-B8) -> 0.03297014565 | B12: =getformula(A12) -> <-- {=MMULT(MINVERSE(A3:D6),F3:F6-B8)} | F12: =A12:A15/SUM(A12:A15) -> 0.04231752812 | G12: =getformula(F12) -> <-- {=A12:A15/SUM(A12:A15)}
A13: 0.1958638449 | F13: 0.2513933014
A14: 0.04680131971 | F14: 0.06006998525
A15: 0.503477911 | F15: 0.6462191852
E16: Sum | F16: =SUM(F12:F15) -> 1 | G16: =getformula(F16) -> <-- =SUM(F12:F15)
A19: E(rx) | B19: =SUMPRODUCT(F12:F15,F3:F6) -> 0.07101115054 | L19: Sigma | M19: Return
A20: sx | B20: =SQRT(MMULT(MMULT(TRANSPOSE(F12:F15),A3:D6),F12:F15)) -> 0.1995072363 | L20: 0.2199380516 | M20: 0.07337715613
L21: 0.2164321629 | M21: 0.07303915533
L22: 0.2131077058 | M22: 0.07270115453
L23: 0.2099732981 | M23: 0.07236315373
L24: 0.2070375715 | M24: 0.07202515294
L25: 0.2043090909 | M25: 0.07168715214
L26: 0.2017962629 | M26: 0.07134915134
L27: 0.1995072363 | M27: 0.07101115054 | N27: =B19 -> 0.07101115054
L28: 0.1984490982 | M28: 0.07084215014
L29: 0.1974497947 | M29: 0.07067314974
L30: 0.1965102235 | M30: 0.07050414935
L31: 0.195631245 | M31: 0.07033514895
L32: 0.1948136796 | M32: 0.07016614855
L33: 0.1940583034 | M33: 0.06999714815
L34: 0.1933658453 | M34: 0.06982814775
L35: 0.1927369833 | M35: 0.06965914735
L36: 0.1921723418 | M36: 0.06949014695
L37: 0.1916724884 | M37: 0.06932114655
L38: 0.1908691159 | M38: 0.06898314576
L39: 0.1903301723 | M39: 0.06864514496
L40: 0.1900579072 | M40: 0.06830714416
L41: 0.1900534666 | M41: 0.06796914336
L42: 0.1903168693 | M42: 0.06763114256
L43: 0.1908470063 | M43: 0.06729314177
L44: 0.191641664 | M44: 0.06695514097
L45: 0.1926975699 | M45: 0.06661714017
L46: 0.1940104585 | M46: 0.06627913937
L47: 0.1955751545 | M47: 0.06594113858

Sheet Page 241-244
A1: ILLUSTRATING PROPOSITIONS 3-5
A2: Dates | B2: Asset 1 | C2: Asset 2 | D2: Asset 3 | E2: Asset 4 | G2: Efficient portfolio w
A3: 1 | B3: -0.06625560589 | C3: -0.02490467918 | D3: -0.04269514666 | E3: 0.1172 | G3: =MMULT(B3:E9,B23:B26) -> -0.01822282576 | H3: =getformula(G3) -> <-- {=MMULT(B3:E9,B23:B26)}
A4: 2 | B4: 0.0853 | C4: 0.0244 | D4: -0.03154361854 | E4: -0.0833 | G4: 0.009908755084
A5: 3 | B5: 0.01793718833 | C5: 0.04460669804 | D5: 0.01919502749 | E5: 0.1918037577 | G5: 0.05470625746
A6: 4 | B6: 0.07248435043 | C6: 0.1789644169 | D6: -0.0652573423 | E6: -0.0740614378 | G6: 0.03650351384
A7: 5 | B7: 0.007545292034 | C7: -0.08222995594 | D7: -0.01757117828 | E7: -0.01443594623 | G7: -0.02510748864
A8: 6 | B8: -0.01569637367 | C8: 0.008319259197 | D8: 0.1288 | E8: -0.05922111281 | G8: 0.02161522959
A9: 7 | B9: -0.02098488668 | C9: 0.05143136402 | D9: 0.1340676294 | E9: -0.004568625061 | G9: 0.041386712
A11: Mean | B11: =AVERAGE(B3:B9) -> 0.01147570922 | C11: =AVERAGE(C3:C9) -> 0.02865530043 | D11: =AVERAGE(D3:D9) -> 0.01785648159 | E11: =AVERAGE(E3:E9) -> 0.01048809082 | F11: =getformula(E11) -> <-- =AVERAGE(E3:E9) | G11: =AVERAGE(G3:G9) -> 0.01725573623
A13: Variance-covariance matrix
B14: Asset 1 | C14: Asset 2 | D14: Asset 3 | E14: Asset 4
A15: Asset 1 | B15: =MMULT(TRANSPOSE(B3:E9-B11:E11),B3:E9-B11:E11)/7 -> 0.002437635547 | C15: 0.001910205859 | D15: -0.001521398034 | E15: -0.002389217814
A16: Asset 2 | B16: 0.001910205859 | C16: 0.005565985757 | D16: -0.0006712816914 | E16: -0.001613476152 | F16: ="cells "&CHAR(COLUMN(B15)+64)&ROW(B15)&":"&CHAR(COLUMN(E18)+64)&ROW(E18)&" contain the formula "&ggetformula(B15) -> cells B15:E18 contain the formula {=MMULT(TRANSPOSE(B3:E9-B11:E11),B3:E9-B11:E11)/7}
A17: Asset 3 | B17: -0.001521398034 | C17: -0.0006712816914 | D17: 0.005726454749 | E17: -0.0004512924354
A18: Asset 4 | B18: -0.002389217814 | C18: -0.001613476152 | D18: -0.0004512924354 | E18: 0.009416416681
A20: Finding an efficient portfolio w
A21: Constant | B21: 0.005
A23: Asset 1 | B23: =MMULT(MINVERSE(B15:E18),TRANSPOSE(B11:E11)-B21)/SUM(MMULT(MINVERSE(B15:E18),TRANSPOSE(B11:E11)-B21)) -> 0.3128594203
A24: Asset 2 | B24: 0.246411479 | D24: ={"Cells B23:B26 contain the formula {=MMULT(MINVERSE(B15:E18),TRANSPOSE(B11:E11)-B21)/SUM(MMULT(MINVERSE(B15:E18),TRANSPOSE(B11:E11)-B21))}"} -> Cells B23:B26 contain the formula {=MMULT(MINVERSE(B15:E18),TRANSPOSE(B11:E11)-B21)/SUM(MMULT(MINVERSE(B15:E18),TRANSPOSE(B11:E11)-B21))}
A25: Asset 3 | B25: 0.2689936998
A26: Asset 4 | B26: 0.1717354009
A29: Implementing propositions 3-5—finding the SML
A30: Step 1: Regress each asset's returns on those of the efficient portfolio w
B31: Asset 1 | C31: Asset 2 | D31: Asset 3 | E31: Asset 4
A32: Alpha | B32: =INTERCEPT(B3:B9,$G$3:$G$9) -> 0.002358090487 | C32: =INTERCEPT(C3:C9,$G$3:$G$9) -> -0.004650705594 | D32: =INTERCEPT(D3:D9,$G$3:$G$9) -> -0.0002450874244 | E32: =INTERCEPT(E3:E9,$G$3:$G$9) -> 0.002761011366 | F32: =getformula(E32) -> <-- =INTERCEPT(E3:E9,$G$3:$G$9)
A33: Beta | B33: =SLOPE(B3:B9,$G$3:$G$9) -> 0.5283819025 | C33: =SLOPE(C3:C9,$G$3:$G$9) -> 1.930141119 | D33: =SLOPE(D3:D9,$G$3:$G$9) -> 1.049017485 | E33: =SLOPE(E3:E9,$G$3:$G$9) -> 0.4477977269 | F33: =getformula(E33) -> <-- =SLOPE(E3:E9,$G$3:$G$9)
A34: R-squared | B34: =RSQ(B3:B9,$G$3:$G$9) -> 0.08968968396 | C34: =RSQ(C3:C9,$G$3:$G$9) -> 0.5241449846 | D34: =RSQ(D3:D9,$G$3:$G$9) -> 0.1504856264 | E34: =RSQ(E3:E9,$G$3:$G$9) -> 0.01667606199 | F34: =getformula(E34) -> <-- =RSQ(E3:E9,$G$3:$G$9)
A36: Step 2: Regress the asset mean returns on their betas
A37: Intercept | B37: =INTERCEPT(B11:E11,B33:E33) -> 0.005 | C37: =getformula(B37) -> <-- =INTERCEPT(B11:E11,B33:E33)
A38: Slope | B38: =SLOPE(B11:E11,B33:E33) -> 0.01225573623 | C38: =getformula(B38) -> <-- =SLOPE(B11:E11,B33:E33)
A39: R-squared | B39: =RSQ(B11:E11,B33:E33) -> 1 | C39: =getformula(B39) -> <-- =RSQ(B11:E11,B33:E33)
A41: Check Propositions 3 & 4: Step 2 coefficients should be: Intercept = c, Slope = E(rw) - c
A42: Intercept = c ? | B42: =IF(ROUND(B37-B21,10)=0,"yes","no") -> yes | C42: =getformula(B42) -> <-- =IF(ROUND(B37-B21,10)=0,"yes","no")
A43: Slope = E(rw) - c ? | B43: =IF(B38=G11-B21,"yes","no") -> yes | C43: =getformula(B43) -> <-- =IF(B38=G11-B21,"yes","no")
